fUST/lending_fUST_20240906
["ID","MTS","AMOUNT","RATE_DAILY","PERIOD"]
[337325636,1725603058520,-596.27,0.00020892,2]
[337325637,1725603058529,-500.0,0.00020892,2]
[337325638,1725603058538,-500.0,0.00020892,2]
[337325639,1725603058547,-500.0,0.00020892,2]
[337325640,1725603058556,-500.0,0.00020892,2]
[337325641,1725603058566,-500.0,0.00020892,2]
[337325642,1725603058576,-507.36732931,0.00020892,2]
[337325643,1725603058586,-500.0,0.00020892,2]
[337325644,1725603058596,-500.0,0.00020892,2]
[337325645,1725603058605,-500.0,0.00020892,2]
[337325646,1725603058615,-500.0,0.00020892,2]
[337325647,1725603058624,-748.74,0.00020892,2]
[337325648,1725603058633,-500.0,0.00020892,2]
[337325649,1725603058643,-500.0,0.00020892,2]
[337325650,1725603058653,-1345.06,0.00020892,2]
[337325651,1725603058662,-660.05,0.00020892,2]
[337325652,1725603058671,-500.0,0.00020892,2]
[337325653,1725603058681,-500.0,0.00020892,2]
[337325654,1725603058690,-500.0,0.00020892,2]
[337325655,1725603058699,-723.36,0.00020892,2]
[337325656,1725603058709,-548.03413607,0.00020892,2]
[337325657,1725603058718,-500.0,0.00020892,2]
[337325658,1725603058727,-500.0,0.00020892,2]
[337325659,1725603058736,-500.0,0.00020892,2]
[337325660,1725603058746,-500.0,0.00020892,2]
[337325661,1725603058755,-652.31,0.00020892,2]
[337325662,1725603058764,-500.0,0.00020892,2]
[337325663,1725603058773,-500.0,0.00020892,2]
[337325664,1725603058784,-500.0,0.00020892,2]
[337325665,1725603058793,-500.0,0.00020892,2]
[337325666,1725603058802,-500.0,0.00020892,2]
[337325667,1725603058812,-500.0,0.00020892,2]
[337325668,1725603058821,-500.0,0.00020892,2]
[337325669,1725603058830,-509.75298281,0.00020892,2]
[337325670,1725603058840,-500.0,0.00020892,2]
[337325671,1725603058849,-500.0,0.00020892,2]
[337325672,1725603058858,-592.73,0.00020892,2]
[337325673,1725603058867,-500.0,0.00020892,2]
[337325674,1725603058876,-500.0,0.00020892,2]
[337325675,1725603058885,-500.0,0.00020892,2]
[337325676,1725603058894,-1822.88,0.00020892,2]
[337325677,1725603058903,-500.0,0.00020892,2]
[337325678,1725603058912,-500.0,0.00020892,2]
[337325679,1725603058922,-500.0,0.00020892,2]
[337325680,1725603058931,-500.0,0.00020892,2]
[337325681,1725603058940,-500.0,0.00020892,2]
[337325682,1725603058949,-500.0,0.00020892,2]
[337325683,1725603058959,-569.46,0.00020892,2]
[337325684,1725603058970,-500.0,0.00020892,2]
[337325685,1725603058979,-500.0,0.00020892,2]
[337325686,1725603058990,-500.0,0.00020892,2]
[337325687,1725603059001,-358.06789274,0.00020892,2]
[337325688,1725603059011,-500.0,0.00020892,2]
[337325689,1725603059021,-500.0,0.00020892,2]
[337325690,1725603059031,-781.87,0.00020892,2]
[337325691,1725603059041,-500.0,0.00020892,2]
[337325692,1725603059052,-500.0,0.00020892,2]
[337325693,1725603059061,-500.0,0.00020892,2]
[337325694,1725603059070,-500.0,0.00020892,2]
[337325695,1725603059080,-500.0,0.00020892,2]
[337325696,1725603059091,-500.0,0.00020892,2]
[337325697,1725603059100,-500.0,0.00020892,2]
[337325698,1725603059109,-500.0,0.00020892,2]
[337325699,1725603059118,-994.98012829,0.0002091,2]
[337325700,1725603059128,-500.0,0.00020912,2]
[337325701,1725603059139,-500.0,0.00020912,2]
[337325702,1725603059149,-500.0,0.00020912,2]
[337325703,1725603059158,-1000.0,0.00020914,2]
[337325704,1725603059167,-1000.0,0.00020921,2]
[337325705,1725603059176,-1000.0,0.00020944,2]
[337325706,1725603059185,-1000.0,0.00020945,2]
[337325707,1725603059195,-1000.0,0.00020957,2]
[337325708,1725603059204,-1000.0,0.00020974,2]
[337325709,1725603059214,-1000.0,0.00020983,2]
[337325710,1725603059224,-369.867562,0.00020986,2]
[337325711,1725603059233,-1145.92043445,0.00021,2]
[337325712,1725603059243,-1000.0,0.00021008,2]
[337325713,1725603059252,-1000.0,0.00021012,2]
[337325714,1725603059261,-1000.0,0.00021017,2]
[337325715,1725603059270,-1000.0,0.00021029,2]
[337325716,1725603059280,-1000.0,0.00021029,2]
[337325717,1725603059289,-300.0,0.00021034,2]
[337325718,1725603059299,-395.94768197,0.00021037,2]
[337325719,1725603059308,-1000.0,0.00021046,2]
[337325720,1725603059318,-1000.0,0.00021054,2]
[337325721,1725603059327,-3456.768066,0.000211,2]
[337325722,1725603059336,-401.291513,0.000211,3]
[337325723,1725603059345,-508.0,0.000211,2]
[337325724,1725603059355,-1002.653271,0.000211,2]
[337325725,1725603059365,-1000.0,0.00021104,2]
[337325726,1725603059374,-1000.0,0.00021108,2]
[337325727,1725603059384,-1000.0,0.0002111,2]
[337325728,1725603059396,-1000.0,0.00021121,2]
[337325729,1725603059406,-1031.82436764,0.00021121,2]
[337325730,1725603059416,-1000.0,0.00021123,2]
[337325731,1725603059425,-1000.0,0.00021124,2]
[337325732,1725603059436,-1480.68,0.00021125,2]
[337325733,1725603059446,-5593.57,0.00021125,2]
[337325734,1725603059455,-1166.64,0.00021125,2]
[337325735,1725603059465,-500.0,0.00021125,2]
[337325736,1725603059476,-637.89,0.00021125,2]
[337325737,1725603059486,-1010.8,0.00021125,2]
[337325738,1725603059495,-1971.42,0.00021125,2]
[337325739,1725603059504,-880.11188859,0.00021132,2]
[337325740,1725603059514,-556.01,0.00021134,2]
[337325741,1725603059523,-7934.81,0.00021134,2]
[337325742,1725603059532,-592.95,0.00021134,2]
[337325743,1725603059541,-500.0,0.00021134,2]
[337325744,1725603059550,-1374.45,0.00021134,2]
[337325745,1725603059559,-777.41,0.00021134,2]
[337325746,1725603059569,-1670.59,0.00021134,2]
[337325747,1725603059578,-878.94,0.00021135,2]
[337325748,1725603059587,-500.0,0.00021135,2]
[337325749,1725603059596,-881.97,0.00021135,2]
[337325750,1725603059605,-1540.13,0.00021135,2]
[337325751,1725603059614,-938.2,0.00021135,2]
[337325752,1725603059624,-1349.8,0.00021135,2]
[337325753,1725603059632,-500.0,0.00021135,2]
[337325754,1725603059642,-24775.49,0.00021135,2]
[337325755,1725603059652,-905.47,0.00021135,2]
[337325756,1725603059661,-1153.75,0.00021135,2]
[337325757,1725603059671,-1020.9,0.00021135,2]
[337325758,1725603059680,-1242.45,0.00021135,2]
[337325759,1725603059690,-500.0,0.00021135,2]
[337325760,1725603059699,-677.65,0.00021135,2]
[337325761,1725603059709,-2039.31,0.00021135,2]
[337325762,1725603059718,-500.0,0.00021135,2]
[337325763,1725603059727,-2650.81,0.00021135,2]
[337325764,1725603059736,-500.0,0.00021135,2]
[337325765,1725603059745,-215.40694777,0.00021135,2]
[337325766,1725603059754,-500.0,0.00021135,2]
[337325767,1725603059763,-500.0,0.00021135,2]
[337325768,1725603059773,-500.0,0.00021135,2]
[337325769,1725603059782,-500.0,0.00021135,2]
[337325770,1725603059792,-1129.76,0.00021135,2]
[337325771,1725603059801,-1211.83,0.00021135,2]
[337325772,1725603059810,-1277.93,0.00021135,2]
[337325773,1725603059819,-699.45,0.00021135,2]
[337325774,1725603059828,-612.92021107,0.00021135,2]
[337325775,1725603059837,-500.0,0.00021135,2]
[337325776,1725603059846,-500.0,0.00021135,2]
[337325777,1725603059855,-500.0,0.00021135,2]
[337325778,1725603059864,-1000.0,0.00021139,2]
[337325779,1725603059873,-500.0,0.00021145,2]
[337325780,1725603059882,-500.0,0.00021145,2]
[337325781,1725603059892,-500.0,0.00021145,2]
[337325782,1725603059901,-500.0,0.00021145,2]
[337325783,1725603059910,-500.0,0.00021145,2]
[337325784,1725603060021,-500.0,0.00021145,2]
[337325785,1725603060030,-500.0,0.00021145,2]
[337325786,1725603060039,-532.42934094,0.00021145,2]
[337325787,1725603060050,-500.0,0.00021145,2]
[337325788,1725603060061,-500.0,0.00021145,2]
[337325789,1725603060071,-807.11,0.00021145,2]
[337325790,1725603060080,-518.0946531,0.00021145,2]
[337325791,1725603060089,-542.2,0.00021145,2]
[337325792,1725603060099,-500.0,0.00021145,2]
[337325793,1725603060108,-626.22,0.00021145,2]
[337325794,1725603060117,-500.0,0.00021145,2]
[337325795,1725603060126,-507.45769778,0.00021145,2]
[337325796,1725603060135,-500.0,0.00021145,2]
[337325797,1725603060144,-320.69057345,0.00021145,2]
[337325798,1725603060154,-200.0,0.00021145,2]
[337325799,1725603060163,-500.0,0.00021145,2]
[337325800,1725603060172,-500.0,0.00021145,2]
[337325801,1725603060182,-634.05,0.00021145,2]
[337325802,1725603060191,-500.0,0.00021145,2]
[337325803,1725603060201,-500.0,0.00021145,2]
[337325804,1725603060210,-500.0,0.00021145,2]
[337325805,1725603060220,-622.5,0.00021145,2]
[337325806,1725603060229,-500.0,0.00021145,2]
[337325807,1725603060240,-500.0,0.00021145,2]
[337325808,1725603060250,-500.0,0.00021145,2]
[337325809,1725603060259,-903.49,0.00021145,2]
[337325810,1725603060269,-500.0,0.00021145,2]
[337325811,1725603060278,-500.0,0.00021145,2]
[337325812,1725603060288,-515.43937609,0.00021145,2]
[337325813,1725603060298,-500.0,0.00021145,2]
[337325814,1725603060308,-500.0,0.00021145,2]
[337325815,1725603060317,-500.0,0.00021145,2]
[337325816,1725603060326,-500.0,0.00021145,2]
[337325817,1725603060335,-500.0,0.00021145,2]
[337325818,1725603060345,-500.0,0.00021145,2]
[337325819,1725603060354,-500.0,0.00021145,2]
[337325820,1725603060363,-582.54,0.00021145,2]
[337325821,1725603060372,-500.0,0.00021145,2]
[337325822,1725603060382,-500.0,0.00021145,2]
[337325823,1725603060395,-500.0,0.00021145,2]
[337325824,1725603060405,-500.0,0.00021145,2]
[337325825,1725603060415,-500.0,0.00021145,2]
[337325826,1725603060425,-752.04,0.00021145,2]
[337325827,1725603060435,-500.0,0.00021145,2]
[337325828,1725603060446,-500.0,0.00021145,2]
[337325829,1725603060456,-151.0,0.00021145,2]
[337325830,1725603060466,-500.0,0.00021145,2]
[337325831,1725603060477,-390.28380027,0.00021145,2]
[337325832,1725603060486,-500.0,0.00021145,2]
[337325833,1725603060496,-500.0,0.00021145,2]
[337325834,1725603060505,-500.0,0.00021145,2]
[337325835,1725603060516,-500.0,0.00021145,2]
[337325836,1725603060526,-151.0,0.00021145,2]
[337325837,1725603060535,-151.0,0.00021145,2]
[337325838,1725603060545,-839.29,0.00021145,2]
[337325839,1725603060555,-500.0,0.00021145,2]
[337325840,1725603060564,-500.0,0.00021145,2]
[337325841,1725603060574,-500.0,0.00021145,2]
[337325842,1725603060583,-500.0,0.00021145,2]
[337325843,1725603060593,-500.0,0.00021145,2]
[337325844,1725603060602,-500.0,0.00021145,2]
[337325845,1725603060612,-500.0,0.00021145,2]
[337325846,1725603060622,-500.0,0.00021145,2]
[337325847,1725603060632,-500.0,0.00021145,2]
[337325848,1725603060642,-1430.21,0.00021145,2]
[337325849,1725603060652,-500.0,0.00021145,2]
[337325850,1725603060662,-500.0,0.00021145,2]
[337325851,1725603060671,-1109.83,0.00021145,2]
[337325852,1725603060686,-500.0,0.00021145,2]
[337325853,1725603060708,-500.0,0.00021145,2]
[337325854,1725603060722,-500.0,0.00021145,2]
[337325855,1725603060731,-736.06,0.00021145,2]
[337325856,1725603060741,-500.0,0.00021145,2]
[337325857,1725603060750,-537.01,0.00021145,2]
[337325858,1725603060761,-500.0,0.00021145,2]
[337325859,1725603060770,-500.0,0.00021145,2]
[337325860,1725603060779,-500.0,0.00021145,2]
[337325861,1725603060788,-1628.82,0.00021145,2]
[337325862,1725603060798,-964.66,0.00021145,2]
[337325863,1725603060808,-500.0,0.00021145,2]
[337325864,1725603060817,-500.0,0.00021145,2]
[337325865,1725603060827,-500.0,0.00021145,2]
[337325866,1725603060838,-500.0,0.00021145,2]
[337325867,1725603060848,-500.0,0.00021145,2]
[337325868,1725603060858,-500.0,0.00021145,2]
[337325869,1725603060867,-500.0,0.00021145,2]
[337325870,1725603060879,-500.0,0.00021145,2]
[337325871,1725603060891,-1047.98,0.00021145,2]
[337325872,1725603060902,-500.0,0.00021145,2]
[337325873,1725603060915,-500.0,0.00021145,2]
[337325874,1725603060926,-500.0,0.00021145,2]
[337325875,1725603060937,-500.0,0.00021145,2]
[337325876,1725603060948,-500.0,0.00021145,2]
[337325877,1725603060959,-7546.56,0.00021145,2]
[337325878,1725603060969,-500.0,0.00021145,2]
[337325879,1725603060978,-500.0,0.00021145,2]
[337325880,1725603060987,-1350.37,0.00021145,2]
[337325881,1725603060997,-1291.8,0.00021145,2]
[337325882,1725603061008,-500.0,0.00021145,2]
[337325883,1725603061017,-1424.74,0.00021145,2]
[337325884,1725603061027,-500.0,0.00021145,2]
[337325885,1725603061037,-1341.57,0.00021145,2]
[337325886,1725603061046,-1854.7,0.00021145,2]
[337325887,1725603061056,-500.0,0.00021145,2]
[337325888,1725603061065,-500.0,0.00021145,2]
[337325889,1725603061075,-500.0,0.00021145,2]
[337325890,1725603061085,-458.2041526,0.00021145,2]
[337325891,1725603061094,-500.0,0.00021145,2]
[337325892,1725603061105,-452.31585404,0.00021145,2]
[337325893,1725603061115,-500.0,0.00021145,2]
[337325894,1725603061125,-500.0,0.00021145,2]
[337325895,1725603061134,-500.0,0.00021145,2]
[337325896,1725603061149,-872.4,0.00021145,2]
[337325897,1725603061158,-500.0,0.00021145,2]
[337325898,1725603061168,-573.8,0.00021145,2]
[337325899,1725603061177,-500.0,0.00021145,2]
[337325900,1725603061187,-500.0,0.00021145,2]
[337325901,1725603061198,-500.0,0.00021145,2]
[337325902,1725603061207,-500.0,0.00021145,2]
[337325903,1725603061217,-547.5,0.00021145,2]
[337325904,1725603061226,-555.33,0.00021145,2]
[337325905,1725603061235,-500.0,0.00021145,2]
[337325906,1725603061244,-606.52,0.00021145,2]
[337325907,1725603061253,-500.0,0.00021145,2]
[337325908,1725603061263,-500.0,0.00021145,2]
[337325909,1725603061272,-500.0,0.00021145,2]
[337325910,1725603061281,-500.0,0.00021145,2]
[337325911,1725603061291,-535.48,0.00021145,2]
[337325912,1725603061301,-500.0,0.00021145,2]
[337325913,1725603061310,-500.0,0.00021145,2]
[337325914,1725603061319,-500.0,0.00021145,2]
[337325915,1725603061329,-671.91,0.00021145,2]
[337325916,1725603061338,-500.0,0.00021145,2]
[337325917,1725603061348,-500.0,0.00021145,2]
[337325918,1725603061358,-500.0,0.00021145,2]
[337325919,1725603061368,-500.0,0.00021145,2]
[337325920,1725603061377,-151.0,0.00021145,2]
[337325921,1725603061391,-500.0,0.00021145,2]
[337325922,1725603061403,-500.0,0.00021145,2]
[337325923,1725603061413,-300.475562,0.00021145,2]
[337325924,1725603061422,-654.5,0.00021145,2]
[337325925,1725603061431,-500.0,0.00021145,2]
[337325926,1725603061442,-500.0,0.00021145,2]
[337325927,1725603061451,-500.0,0.00021145,2]
[337325928,1725603061461,-500.0,0.00021145,2]
[337325929,1725603061470,-2392.4,0.00021145,2]
[337325930,1725603061480,-500.0,0.00021145,2]
[337325931,1725603061490,-411.81946565,0.00021145,2]
[337325932,1725603061499,-500.0,0.00021145,2]
[337325933,1725603061508,-116073.84,0.00021145,2]
[337325934,1725603061517,-500.0,0.00021145,2]
[337325935,1725603061526,-612.97888055,0.00021145,2]
[337325936,1725603061536,-500.0,0.00021145,2]
[337325937,1725603061545,-500.0,0.00021145,2]
[337325938,1725603061554,-507.98578399,0.00021145,2]
[337325939,1725603061564,-151.0,0.00021145,2]
[337325940,1725603061574,-151.0,0.00021145,2]
[337325941,1725603061583,-1403.48,0.00021145,2]
[337325942,1725603061592,-500.0,0.00021145,2]
[337325943,1725603061602,-507.40343224,0.00021145,2]
[337325944,1725603061612,-772.05,0.00021145,2]
[337325945,1725603061622,-500.0,0.00021145,2]
[337325946,1725603061631,-500.0,0.00021145,2]
[337325947,1725603061641,-500.0,0.00021145,2]
[337325948,1725603061651,-500.0,0.00021145,2]
[337325949,1725603061660,-500.0,0.00021145,2]
[337325950,1725603061669,-500.0,0.00021145,2]
[337325951,1725603061679,-503.99874385,0.00021145,2]
[337325952,1725603061688,-500.0,0.00021145,2]
[337325953,1725603061697,-1367.49,0.00021145,2]
[337325954,1725603061706,-500.0,0.00021145,2]
[337325955,1725603061716,-256.632414,0.00021145,2]
[337325956,1725603061725,-506.41469261,0.00021145,2]
[337325957,1725603061734,-256.632414,0.00021145,2]
[337325958,1725603061743,-151.0,0.00021145,2]
[337325959,1725603061752,-1000.0,0.00021151,2]
[337325960,1725603061762,-151.0,0.00021155,2]
[337325961,1725603061772,-342.465442,0.00021155,2]
[337325962,1725603061781,-342.465442,0.00021155,2]
[337325963,1725603061790,-222.959353,0.00021155,2]
[337325964,1725603061801,-222.959353,0.00021155,2]
[337325965,1725603061810,-151.0,0.00021155,2]
[337325966,1725603061819,-151.0,0.00021155,2]
[337325967,1725603061828,-151.0,0.00021155,2]
[337325968,1725603061837,-151.0,0.00021155,2]
[337325969,1725603061847,-172.116408,0.00021155,2]
[337325970,1725603061857,-172.116408,0.00021155,2]
[337325971,1725603061867,-3018.044888,0.00021155,2]
[337325972,1725603061876,-3018.044888,0.00021155,2]
[337325973,1725603061886,-187.877231,0.00021155,2]
[337325974,1725603061993,-187.877231,0.00021155,2]
[337325975,1725603062004,-151.0,0.00021164,2]
[337325976,1725603062013,-249.499381,0.00021164,2]
[337325977,1725603062024,-220.505236,0.00021164,2]
[337325978,1725603062033,-249.499381,0.00021164,2]
[337325979,1725603062044,-151.0,0.00021164,2]
[337325980,1725603062055,-220.505236,0.00021164,2]
[337325981,1725603062065,-151.0,0.00021164,2]
[337325982,1725603062075,-151.0,0.00021164,2]
[337325983,1725603062086,-151.0,0.00021164,2]
[337325984,1725603062096,-151.0,0.00021164,2]
[337325985,1725603062106,-190.155027,0.00021164,2]
[337325986,1725603062115,-190.155027,0.00021164,2]
[337325987,1725603062124,-156.230735,0.00021165,2]
[337325988,1725603062133,-151.0,0.00021165,2]
[337325989,1725603062143,-500.0,0.00021165,2]
[337325990,1725603062152,-500.0,0.00021165,2]
[337325991,1725603062161,-500.0,0.00021165,2]
[337325992,1725603062170,-500.0,0.00021165,2]
[337325993,1725603062180,-740.53,0.00021165,2]
[337325994,1725603062190,-500.0,0.00021165,2]
[337325995,1725603062200,-500.0,0.00021165,2]
[337325996,1725603062210,-1539.53,0.00021165,2]
[337325997,1725603062219,-500.0,0.00021165,2]
[337325998,1725603062228,-754.9,0.00021165,2]
[337325999,1725603062237,-500.0,0.00021165,2]
[337326000,1725603062246,-733.87,0.00021165,2]
[337326001,1725603062256,-586.56,0.00021165,2]
[337326002,1725603062266,-151.0,0.00021165,2]
[337326003,1725603062276,-151.0,0.00021165,2]
[337326004,1725603062285,-500.0,0.00021165,2]
[337326005,1725603062295,-500.0,0.00021165,2]
[337326006,1725603062305,-151.884484,0.00021165,2]
[337326007,1725603062315,-1561.89,0.00021165,2]
[337326008,1725603062325,-151.884484,0.00021165,2]
[337326009,1725603062334,-151.0,0.00021165,2]
[337326010,1725603062343,-500.0,0.00021165,2]
[337326011,1725603062352,-151.0,0.00021165,2]
[337326012,1725603062361,-526.42,0.00021165,2]
[337326013,1725603062370,-500.0,0.00021165,2]
[337326014,1725603062380,-151.0,0.00021165,2]
[337326015,1725603062391,-151.0,0.00021165,2]
[337326016,1725603062403,-1855.18,0.00021165,2]
[337326017,1725603062412,-500.0,0.00021165,2]
[337326018,1725603062422,-500.0,0.00021165,2]
[337326019,1725603062431,-151.0,0.00021165,2]
[337326020,1725603062440,-618.21,0.00021165,2]
[337326021,1725603062450,-500.0,0.00021165,2]
[337326022,1725603062459,-1058.34,0.00021165,2]
[337326023,1725603062470,-500.0,0.00021165,2]
[337326024,1725603062479,-153.75572357,0.00021165,2]
[337326025,1725603062489,-500.0,0.00021165,2]
[337326026,1725603062498,-568.98,0.00021165,2]
[337326027,1725603062508,-513.39,0.00021165,2]
[337326028,1725603062517,-1225.33,0.00021165,2]
[337326029,1725603062527,-506.47,0.00021165,2]
[337326030,1725603062538,-500.0,0.00021165,2]
[337326031,1725603062549,-603.34,0.00021165,2]
[337326032,1725603062559,-1308.07,0.00021165,2]
[337326033,1725603062569,-753.73,0.00021165,2]
[337326034,1725603062578,-903.75,0.00021165,2]
[337326035,1725603062586,-500.0,0.00021165,2]
[337326036,1725603062595,-500.0,0.00021165,2]
[337326037,1725603062605,-500.0,0.00021165,2]
[337326038,1725603062614,-2360.95,0.00021165,2]
[337326039,1725603062623,-500.0,0.00021165,2]
[337326040,1725603062633,-500.0,0.00021166,2]
[337326041,1725603062642,-500.0,0.00021166,2]
[337326042,1725603062652,-65.38192602,0.00021166,2]
[337326043,1725603063101,-58386.62,0.00020313,2]
[337326044,1725603063111,-500.0,0.00020323,2]
[337326045,1725603063121,-58386.62,0.00020587,2]
[337326046,1725603063131,-555.2412925,0.00020597,2]
[337326047,1725603063140,-58386.62,0.00020861,2]
[337326048,1725603063151,-58386.62,0.00021135,2]
[337326049,1725603063161,-530.88807398,0.00021166,2]
[337326050,1725603063171,-500.0,0.00021166,2]
[337326051,1725603063181,-500.0,0.00021166,2]
[337326052,1725603063192,-500.0,0.00021166,2]
[337326053,1725603063203,-500.0,0.00021166,2]
[337326054,1725603063212,-500.0,0.00021166,2]
[337326055,1725603063224,-500.0,0.00021166,2]
[337326056,1725603063235,-500.0,0.00021166,2]
[337326057,1725603063245,-500.0,0.00021166,2]
[337326058,1725603063255,-500.0,0.00021166,2]
[337326059,1725603063264,-748.74,0.00021166,2]
[337326060,1725603063273,-500.0,0.00021166,2]
[337326061,1725603063283,-500.0,0.00021166,2]
[337326062,1725603063293,-1345.06,0.00021166,2]
[337326063,1725603063303,-660.05,0.00021166,2]
[337326064,1725603063313,-500.0,0.00021166,2]
[337326065,1725603063323,-500.0,0.00021166,2]
[337326066,1725603063333,-310.86098444,0.00021166,2]
[337326067,1725603063344,-723.36,0.00021166,2]
[337326068,1725603063355,-500.0,0.00021166,2]
[337326069,1725603063364,-500.0,0.00021166,2]
[337326070,1725603063373,-500.0,0.00021166,2]
[337326071,1725603063383,-500.0,0.00021166,2]
[337326072,1725603063394,-652.31,0.00021166,2]
[337326073,1725603063404,-500.0,0.00021166,2]
[337326074,1725603063414,-500.0,0.00021166,2]
[337326075,1725603063425,-500.0,0.00021166,2]
[337326076,1725603063434,-500.0,0.00021166,2]
[337326077,1725603063444,-500.0,0.00021166,2]
[337326078,1725603063453,-500.0,0.00021166,2]
[337326079,1725603063464,-500.0,0.00021166,2]
[337326080,1725603063474,-500.0,0.00021166,2]
[337326081,1725603063484,-500.0,0.00021166,2]
[337326082,1725603063596,-592.73,0.00021166,2]
[337326083,1725603063606,-500.0,0.00021166,2]
[337326084,1725603063617,-500.0,0.00021166,2]
[337326085,1725603063626,-500.0,0.00021166,2]
[337326086,1725603063636,-1822.88,0.00021166,2]
[337326087,1725603063647,-500.0,0.00021166,2]
[337326088,1725603063657,-500.0,0.00021166,2]
[337326089,1725603063668,-500.0,0.00021166,2]
[337326090,1725603063678,-500.0,0.00021166,2]
[337326091,1725603063689,-264.89436918,0.00021166,2]
[337326092,1725603063699,-301.09377645,0.00021166,2]
[337326093,1725603063708,-569.46,0.00021166,2]
[337326094,1725603063717,-500.0,0.00021166,2]
[337326095,1725603063727,-500.0,0.00021166,2]
[337326096,1725603063739,-500.0,0.00021166,2]
[337326097,1725603063749,-500.0,0.00021166,2]
[337326098,1725603063758,-500.0,0.00021166,2]
[337326099,1725603063768,-781.87,0.00021166,2]
[337326100,1725603063778,-439.30959084,0.00021166,2]
[337326101,1725603063788,-500.0,0.00021166,2]
[337326102,1725603063797,-500.0,0.00021166,2]
[337326103,1725603063806,-500.0,0.00021166,2]
[337326104,1725603063816,-500.0,0.00021166,2]
[337326105,1725603063826,-500.0,0.00021166,2]
[337326106,1725603063836,-150.98812307,0.00021166,2]
[337326107,1725603063846,-500.0,0.00021166,2]
[337326108,1725603063855,-306.11965758,0.00021167,2]
[337326109,1725603063866,-176.30786211,0.00021185,2]
[337326110,1725603063876,-584.25087521,0.00021185,2]
[337326111,1725603063885,-500.0,0.00021186,2]
[337326112,1725603063897,-151.0,0.00021186,2]
[337326113,1725603063907,-151.0,0.00021186,2]
[337326114,1725603063917,-510.43096104,0.00021186,2]
[337326115,1725603063927,-500.0,0.00021186,2]
[337326116,1725603063936,-151.0,0.00021205,2]
[337326117,1725603063946,-151.0,0.00021205,2]
[337326118,1725603063956,-151.0,0.00021205,2]
[337326119,1725603063965,-151.0,0.00021205,2]
[337326120,1725603063975,-1480.68,0.00021399,2]
[337326121,1725603063986,-5593.57,0.00021399,2]
[337326122,1725603063996,-1166.64,0.00021399,2]
[337326123,1725603064006,-500.0,0.00021399,2]
[337326124,1725603064016,-637.89,0.00021399,2]
[337326125,1725603064026,-1010.8,0.00021399,2]
[337326126,1725603064036,-1971.42,0.00021399,2]
[337326127,1725603064046,-1075.02,0.000214,2]
[337326128,1725603064056,-1640.90678075,0.000214,12]
[337326129,1725603064066,-556.01,0.00021408,2]
[337326130,1725603064075,-7934.81,0.00021408,2]
[337326131,1725603064085,-592.95,0.00021408,2]
[337326132,1725603064096,-500.0,0.00021408,2]
[337326133,1725603064106,-1374.45,0.00021408,2]
[337326134,1725603064116,-777.41,0.00021408,2]
[337326135,1725603064125,-1670.59,0.00021408,2]